bitfinex/quotes_SOLUSD_20240714
["timestamp","ask_amount","ask_price","bid_price","bid_amount"]
[1720941207001,1.72350571,145.07,145.02,11.19]
[1720941207208,1.72350262,145.08,145.02,11.19]
[1720941207402,1.7235185,145.07,145.01,45.2]
[1720941207603,1.7235185,145.07,145.01,56.39]
[1720941208414,1.7235769,145.08,145.02,11.19]
[1720941208593,1.72353075,145.07,145.02,11.19]
[1720941208792,1.72353009,145.08,145.02,11.19]
[1720941208988,1.72352873,145.07,145.02,11.19]
[1720941209194,1.72352413,145.08,145.02,11.19]
[1720941209512,1.72346181,145.07,145.02,11.19]
[1720941209818,1.72351219,145.08,145.02,11.19]
[1720941209995,1.72352262,145.07,145.02,11.19]
[1720941210200,1.72352688,145.08,145.02,11.19]
[1720941210403,1.72350618,145.07,145.02,11.19]
[1720941211117,1.72352757,145.08,145.03,11.19]
[1720941211292,1.72321025,145.1,145.05,11.19]
[1720941211487,11.19,145.1,145.05,11.19]
[1720941216519,1.7231701,145.11,145.05,11.19]
[1720941216722,11.19,145.1,145.05,11.19]
[1720941218102,1.7231701,145.11,145.06,56.19]
[1720941218424,11.19,145.12,145.07,11.19]
[1720941218629,1.72294504,145.13,145.06,45.0]
[1720941218919,1.72294504,145.13,145.04,27.1111]
[1720941218920,11.19,145.13,145.08,11.19]
[1720941219295,8.28643865,145.14,145.05,45.0]
[1720941219296,1.72293865,145.14,145.05,45.0]
[1720941219509,11.19,145.14,145.06,20.0]
[1720941219715,11.19,145.14,145.07,45.0]
[1720941220146,12.91260711,145.13,145.07,45.0]
[1720941220305,12.91260711,145.13,145.08,11.19]
[1720941221000,1.72260711,145.13,145.08,11.19]
[1720941221200,12.91279125,145.13,145.08,11.19]
[1720941224325,1.72279125,145.13,145.09,11.19]
[1720941224513,1.72279209,145.13,145.09,11.19]
[1720941225302,11.19,145.14,145.09,11.19]
[1720941226435,1.72266425,145.13,145.09,11.19]
[1720941226815,1.72266425,145.13,145.07,45.0]
[1720941227006,11.19,145.13,145.08,11.19]
[1720941227326,1.72280508,145.12,145.08,11.19]
[1720941227900,12.91280508,145.12,145.07,56.19]
[1720941228100,11.19,145.12,145.07,56.19]
[1720941229027,11.19,145.13,145.07,45.0]
[1720941229215,11.19,145.14,145.07,45.0]
[1720941229415,12.9127895,145.14,145.09,11.19]
[1720941230435,1.72278914,145.13,145.09,11.19]
[1720941231938,12.91278914,145.13,145.08,11.19]
[1720941236521,1.72278914,145.13,145.08,11.19]
[1720941236716,1.72278772,145.13,145.08,11.19]
[1720941237043,1.72278772,145.13,145.09,11.19]
[1720941237338,1.72278772,145.13,145.08,11.19]
[1720941238939,1.72278772,145.13,145.09,11.19]
[1720941241845,1.72278772,145.13,145.07,45.0]
[1720941242231,1.72278772,145.13,145.09,11.19]
[1720941243621,11.19,145.14,145.09,11.19]
[1720941244049,1.72275363,145.13,145.09,11.19]
[1720941244725,12.91275363,145.13,145.08,11.19]
[1720941245042,1.72281682,145.12,145.08,11.19]
[1720941245547,11.19,145.13,145.08,11.19]
[1720941247441,1.72278324,145.12,145.07,45.0]
[1720941247743,1.72278324,145.12,145.08,11.19]
[1720941249250,1.72278324,145.12,145.07,45.0]
[1720941249456,1.72278324,145.12,145.07,56.19]
[1720941249457,12.91278324,145.12,145.07,56.19]
[1720941249753,12.91278324,145.12,145.07,11.19]
[1720941251966,12.91278324,145.12,145.06,20.0]
[1720941252136,12.91278324,145.12,145.07,11.19]
[1720941252762,12.91278324,145.12,145.05,20.0]
[1720941252763,1.72278324,145.12,145.05,20.0]
[1720941252958,11.19,145.1,145.01,6.3141]
[1720941253130,12.91327169,145.09,145.04,11.19]
[1720941253330,1.72327041,145.08,145.04,11.19]
[1720941253552,11.19,145.09,145.04,11.19]
[1720941253735,11.19,145.1,145.05,11.19]
[1720941253945,1.72325129,145.09,145.05,11.19]
[1720941254250,11.19,145.11,145.06,11.19]
[1720941254440,1.72319218,145.1,145.06,11.19]
[1720941254828,1.72319218,145.1,145.01,6.3141]
[1720941255167,1.72319218,145.1,145.06,11.19]
[1720941255651,21.8657,145.13,145.08,11.19]
[1720941255652,1.72323738,145.12,145.08,11.19]
[1720941256071,1.72323738,145.12,145.02,65.0]
[1720941256352,11.19,145.11,145.06,11.19]
[1720941256555,1.72314408,145.1,145.02,65.0]
[1720941256762,1.72314408,145.1,145.05,11.19]
[1720941256933,12.91314408,145.1,145.05,11.19]
[1720941258860,11.19,145.06,145.01,0.2]
[1720941259037,1.7237489,145.05,145.01,0.2]
[1720941259358,12.91382036,145.04,145.01,0.2]
[1720941259559,11.19,145.04,145.01,0.2]
[1720941259862,12.91380038,145.03,145.01,0.2]
[1720941261146,1.72380038,145.03,145.01,0.2]
[1720941261340,11.19,145.04,145.01,0.2]
[1720941261754,1.72391572,145.03,145.01,0.2]
[1720941261927,1.7239158,145.07,145.01,0.2]
[1720941262139,11.19,145.04,145.01,0.2]
[1720941262335,11.19,145.05,145.01,0.2]
[1720941262634,1.72374586,145.04,145.01,0.2]
[1720941264037,1.7238419,145.07,145.01,45.2]
[1720941264367,11.19,145.06,145.01,11.39]
[1720941264535,1.72370113,145.05,145.01,11.39]
[1720941265035,12.91370113,145.05,145.01,0.2]
[1720941265244,11.19,145.05,145.01,0.2]
[1720941265468,11.19,145.06,145.01,11.39]
[1720941265655,11.19,145.06,145.01,56.39]
[1720941265966,1.72364984,145.05,145.01,56.39]
[1720941266658,11.19,145.05,145.01,45.2]
[1720941266959,1.72365758,145.07,145.01,45.2]
[1720941266960,11.19,145.06,145.01,56.39]
[1720941268865,1.72365758,145.07,145.01,56.39]
[1720941269082,11.19,145.06,145.01,56.39]
[1720941272477,1.72365758,145.07,145.01,56.39]
[1720941272775,11.19,145.06,145.01,0.2]
[1720941272978,12.91377991,145.05,145.01,0.2]
[1720941273162,11.19,145.05,145.01,0.2]
[1720941273367,1.72377285,145.04,145.01,0.2]
[1720941273573,11.19,145.05,145.01,0.2]
[1720941273766,1.72377162,145.04,145.01,0.2]
[1720941274387,11.19,145.05,145.01,0.2]
[1720941274887,12.91377172,145.06,145.01,11.39]
[1720941275271,12.91368096,145.05,145.01,0.2]
[1720941276380,1.72374837,145.06,145.01,0.2]
[1720941276573,11.19,145.05,145.01,0.2]
[1720941276775,12.91374837,145.06,145.01,11.39]
[1720941277176,1.72366682,145.07,145.01,11.39]
[1720941277381,12.91366682,145.07,145.01,0.2]
[1720941277589,12.91366682,145.07,145.02,11.19]
[1720941278373,23.58920016,145.08,145.02,11.19]
[1720941278772,11.19,145.07,145.02,11.19]
[1720941279089,34.77920016,145.08,145.03,11.19]
[1720941280376,1.72342563,145.1,145.05,11.19]
[1720941280692,12.91342563,145.1,145.05,11.19]
[1720941280990,11.19,145.09,145.04,56.19]
[1720941281289,11.19,145.05,145.01,0.2]
[1720941281496,12.91374405,145.04,145.01,0.2]
[1720941282002,12.32778005,145.04,145.01,0.2]
[1720941284100,11.19,145.05,145.01,0.2]
[1720941284301,1.72381099,145.04,145.01,0.2]
[1720941284510,12.91381099,145.04,145.01,0.2]
[1720941286801,11.19,145.03,145.01,0.2]
[1720941287780,1.72392813,145.06,145.01,0.2]
[1720941287781,12.91392913,145.02,145.01,0.2]
[1720941288089,11.19,145.02,145.01,0.2]
[1720941290787,11.19,145.03,145.01,0.2]
[1720941291685,1.72401924,145.05,145.01,0.2]
[1720941291892,11.19,145.05,145.01,0.2]
[1720941293400,1.72381046,145.06,145.01,0.2]
[1720941293713,11.19,145.05,145.01,0.2]
[1720941293893,1.72374067,145.04,145.01,0.2]
[1720941296916,11.19,145.05,145.01,0.2]
[1720941300818,12.91370706,145.04,145.01,0.2]
[1720941301113,11.19,145.03,145.01,0.2]
[1720941301288,1.72384883,145.06,145.01,0.2]
[1720941301811,1.72384883,145.06,145.01,11.39]
[1720941302011,12.91384883,145.06,145.01,11.39]
[1720941302397,12.91384883,145.06,145.01,0.2]
[1720941302912,11.19,145.05,145.01,0.2]
[1720941305511,1.72384883,145.06,145.01,0.2]
[1720941305704,11.19,145.05,145.01,0.2]
[1720941306013,1.72384883,145.06,145.01,0.2]
[1720941306014,12.91384883,145.06,145.01,0.2]
[1720941306219,1.7237017,145.1,145.05,11.19]
[1720941306422,1.7230818,145.1,145.06,45.0]
[1720941306627,1.7230818,145.1,145.06,11.19]
[1720941306813,11.19,145.11,145.05,11.19]
[1720941307129,1.72305847,145.1,145.05,11.19]
[1720941308824,12.91305988,145.11,145.06,11.19]
[1720941309199,12.91305988,145.11,145.02,16.2053]
[1720941309200,11.19,145.11,145.07,11.19]
[1720941309396,11.19,145.12,145.07,11.19]
[1720941310598,11.19,145.1,145.02,16.2053]
[1720941310911,11.19,145.08,145.03,31.19]
[1720941312022,11.19,145.08,145.04,45.0]
[1720941313029,11.19,145.09,145.04,56.19]
[1720941313636,12.91322552,145.1,145.05,11.19]
[1720941315130,11.19,145.1,145.05,11.19]
[1720941318334,11.19,145.1,145.04,45.0]
[1720941318531,11.19,145.1,145.05,11.19]
[1720941318913,11.19,145.07,145.03,20.0]
[1720941319118,11.19,145.07,145.02,16.2053]
[1720941319324,11.19,145.07,145.02,27.3953]
[1720941319325,1.72349827,145.06,145.02,27.3953]
[1720941319825,1.72349827,145.06,145.02,16.2053]
[1720941320007,11.19,145.04,145.01,0.2]
[1720941320738,1.72372094,145.07,145.01,0.2]
[1720941320940,11.19,145.07,145.01,0.2]
[1720941321312,12.91348904,145.08,145.03,11.19]
[1720941321811,18.0838,145.06,145.01,0.2]
[1720941322008,11.19,145.02,145.01,0.2]
[1720941330547,12.91430781,145.02,145.01,0.2]
[1720941335748,11.19,145.02,145.01,0.2]
[1720941336741,12.91430611,145.03,145.01,0.2]
[1720941336943,11.19,145.03,145.01,0.2]
[1720941337435,11.19,145.02,145.01,0.2]
[1720941339127,11.19,145.03,145.01,0.2]
[1720941340351,1.72393576,145.06,145.01,0.2]
[1720941340544,11.19,145.04,145.01,0.2]
[1720941341747,28.61763576,145.06,145.01,0.2]
[1720941341748,11.19,145.02,145.01,0.2]
[1720941342250,1.72400193,145.05,145.01,0.2]
[1720941342470,7.75324752,145.08,145.01,0.2]
[1720941342760,12.91353916,145.07,145.01,0.2]
[1720941342933,11.19,145.04,145.01,0.2]
[1720941346882,11.19,145.05,145.01,0.2]
[1720941347056,12.91383387,145.04,145.01,0.2]
[1720941348352,11.19,145.03,145.01,0.2]
[1720941348788,1.72385357,145.02,145.01,0.2]
[1720941348970,12.91385357,145.02,145.01,0.2]
[1720941350760,1.72406135,145.08,145.01,0.2]
[1720941350974,15.6542,145.09,145.01,56.39]
[1720941350975,12.91362295,145.07,145.01,56.39]
[1720941351179,12.91362295,145.07,145.02,11.19]
[1720941351854,11.19,145.07,145.02,11.19]
[1720941353879,1.72356003,145.08,145.02,11.19]
[1720941354070,12.91355566,145.07,145.02,11.19]
[1720941354269,6.8918,145.1,145.01,45.2]
[1720941354270,11.19,145.06,145.01,45.2]
[1720941354461,11.19,145.06,145.01,0.2]
[1720941355181,1.7236904,145.07,145.01,0.2]
[1720941355365,12.9136904,145.07,145.01,0.2]
[1720941356179,11.19,145.07,145.01,0.2]
[1720941356502,12.9135147,145.09,145.04,11.19]
[1720941356790,1.72336219,145.1,145.05,11.19]
[1720941357103,11.19,145.1,145.05,11.19]
[1720941357892,11.19,145.09,145.04,26.4412]
[1720941358061,11.19,145.1,145.05,56.19]
[1720941358385,1.72312508,145.11,145.05,56.19]
[1720941358593,1.72312508,145.11,145.06,11.19]
[1720941358885,12.91312508,145.11,145.06,11.19]
[1720941359988,11.19,145.12,145.07,11.19]
[1720941361358,1.72287345,145.14,145.05,45.0]
[1720941361693,1.7226678,145.16,145.09,11.19]
[1720941361992,12.9126678,145.16,145.1,11.19]
[1720941362183,12.9126678,145.16,145.1,56.19]
[1720941362497,12.9126678,145.16,145.11,11.19]
[1720941362820,11.19,145.16,145.11,11.19]
[1720941363163,1.72249498,145.15,145.11,11.19]
[1720941363365,12.91249498,145.15,145.1,45.0]
[1720941363593,12.91249498,145.15,145.1,56.19]
[1720941364775,11.19,145.14,145.1,45.0]
[1720941366077,11.19,145.14,145.09,11.19]
[1720941367295,11.19,145.15,145.1,56.19]
[1720941368170,1.72249951,145.17,145.1,45.0]
[1720941368371,12.91253039,145.18,145.13,11.19]
[1720941368882,1.72223838,145.17,145.13,11.19]
[1720941369208,11.19,145.16,145.07,16.4177]
[1720941369371,11.19,145.16,145.11,11.19]
[1720941371099,12.91252098,145.17,145.11,11.19]
[1720941371475,1.72252098,145.17,145.11,11.19]
[1720941371678,11.19,145.17,145.12,45.0]
[1720941371888,12.91240273,145.16,145.11,11.19]
[1720941372072,11.19,145.16,145.11,11.19]
[1720941372268,11.19,145.16,145.12,11.19]
[1720941372499,11.19,145.16,145.11,11.19]
[1720941372875,1.7224042,145.15,145.11,11.19]
[1720941373086,11.19,145.14,145.07,16.4177]
[1720941373385,11.19,145.12,145.07,16.4177]
[1720941373998,11.19,145.12,145.07,27.6077]
[1720941378109,11.19,145.13,145.08,11.19]
[1720941378991,1.72285515,145.15,145.09,56.19]
[1720941379307,12.91285515,145.15,145.09,56.19]
[1720941380114,11.19,145.14,145.09,45.0]
[1720941380291,11.19,145.13,145.08,56.19]
[1720941380611,11.19,145.14,145.09,11.19]
[1720941381110,1.72259158,145.16,145.11,11.19]
[1720941381287,11.19,145.17,145.12,11.19]
[1720941381828,1.72245816,145.18,145.12,11.19]
[1720941382034,12.91230793,145.17,145.12,11.19]
[1720941382338,12.91230793,145.17,145.08,45.0]
[1720941382339,1.72230793,145.17,145.11,11.19]
[1720941382504,11.19,145.16,145.11,11.19]
[1720941382707,11.19,145.15,145.1,11.19]
[1720941382917,11.19,145.15,145.11,45.0]
[1720941383424,1.72248004,145.17,145.11,56.19]
[1720941383624,12.91248004,145.17,145.12,11.19]
[1720941384439,11.19,145.16,145.11,56.19]
[1720941389306,1.72229695,145.15,145.11,45.0]
[1720941389513,1.72253476,145.15,145.11,11.19]
[1720941389827,1.72253476,145.15,145.1,11.19]
[1720941389828,12.91253476,145.15,145.1,11.19]
[1720941390211,1.72253476,145.15,145.1,11.19]
[1720941390421,1.72252287,145.17,145.1,11.19]
[1720941390618,11.19,145.16,145.11,11.19]
[1720941391940,11.19,145.17,145.12,56.19]
[1720941392142,11.19,145.16,145.12,45.0]
[1720941392326,11.19,145.16,145.11,11.19]
[1720941393337,1.72240846,145.15,145.11,11.19]
[1720941393850,12.91250888,145.15,145.1,11.19]
[1720941394635,11.19,145.15,145.1,11.19]
[1720941394833,11.19,145.16,145.11,11.19]
[1720941395046,1.72250868,145.17,145.11,11.19]
[1720941395352,12.91250868,145.17,145.12,11.19]
[1720941395715,11.19,145.17,145.12,11.19]
[1720941396123,12.91233328,145.18,145.12,11.19]
[1720941396324,1.72232542,145.17,145.12,11.19]
[1720941397081,12.91232637,145.18,145.12,11.19]
[1720941397365,1.72232637,145.17,145.12,11.19]
[1720941398252,1.72232637,145.17,145.13,11.19]
[1720941398437,13.4924,145.19,145.14,45.0]
[1720941398438,6.6048,145.19,145.14,45.0]
[1720941398751,26.3856,145.2,145.15,11.19]
[1720941399045,15.1956,145.2,145.13,45.0]
[1720941399243,12.91195934,145.21,145.16,11.19]
[1720941399454,1.72193621,145.2,145.16,11.19]
[1720941399749,11.19,145.21,145.16,11.19]
[1720941400560,12.91190807,145.21,145.16,11.19]
[1720941400720,1.72190238,145.2,145.16,11.19]
[1720941401640,18.0767,145.21,145.16,11.19]
[1720941402047,8.60889875,145.2,145.16,11.19]
[1720941402251,11.19,145.19,145.14,11.19]
[1720941402416,11.19,145.19,145.15,45.0]
[1720941402832,11.19,145.19,145.14,11.19]
[1720941403020,12.91210125,145.18,145.13,11.19]
[1720941403422,12.91210125,145.18,145.12,27.6097]
[1720941404850,12.91216796,145.19,145.14,11.19]
[1720941406433,8.60860087,145.22,145.12,16.4197]
[1720941406633,11.19,145.2,145.15,11.19]
[1720941407326,11.19,145.19,145.14,11.19]
[1720941407527,1.72196791,145.18,145.13,45.0]
[1720941407868,12.91196791,145.18,145.13,56.19]
[1720941408027,11.19,145.18,145.13,56.19]
[1720941408428,12.91215539,145.19,145.14,11.19]
[1720941409660,12.91215539,145.19,145.13,45.0]
[1720941409851,11.19,145.18,145.13,56.19]
[1720941410575,1.72214617,145.17,145.13,45.0]
[1720941410729,11.19,145.18,145.09,15.7543]
[1720941411052,1.72225333,145.17,145.13,11.19]
[1720941411227,11.19,145.18,145.13,11.19]
[1720941416361,1.72223846,145.17,145.13,11.19]
[1720941417379,11.19,145.18,145.13,11.19]
[1720941420267,1.72223821,145.17,145.13,11.19]
[1720941420581,11.19,145.18,145.13,11.19]
[1720941420948,11.19,145.18,145.1,65.0]
[1720941420949,1.72224028,145.2,145.14,11.19]
[1720941421148,11.19,145.19,145.14,11.19]
[1720941423583,1.72224028,145.2,145.15,11.19]
[1720941423784,11.19,145.2,145.15,11.19]
[1720941423955,17.3103,145.18,145.13,11.19]
[1720941424151,1.72226448,145.17,145.13,11.19]
[1720941424352,19.03256443,145.18,145.13,11.19]
[1720941424586,6.1203,145.18,145.14,11.19]
[1720941424783,1.72206249,145.17,145.1,20.0]
[1720941424954,1.72206249,145.17,145.09,15.7543]
[1720941424955,11.19,145.16,145.09,15.7543]
[1720941425159,11.19,145.16,145.11,11.19]
[1720941425801,11.19,145.16,145.09,15.7543]
[1720941425974,11.19,145.16,145.11,11.19]
[1720941426993,11.19,145.16,145.1,45.0]
[1720941427193,11.19,145.16,145.11,31.19]
[1720941427788,12.91206249,145.17,145.11,31.19]
[1720941427991,33.941,145.18,145.11,20.0]
[1720941428173,22.751,145.18,145.14,11.19]
[1720941428366,35.6631693,145.18,145.13,11.19]
[1720941428775,1.72221356,145.17,145.11,20.0]
[1720941429065,12.91221356,145.17,145.11,11.19]
[1720941430967,12.91221356,145.17,145.12,11.19]
[1720941431600,33.941,145.18,145.13,56.19]
[1720941432002,1.72222389,145.17,145.13,56.19]
[1720941435001,33.941,145.18,145.13,56.19]
[1720941435302,11.19,145.19,145.14,11.19]
[1720941435504,11.19,145.2,145.15,11.19]
[1720941435676,12.91205084,145.2,145.15,11.19]
[1720941435876,1.72205084,145.2,145.15,11.19]
[1720941436193,1.72201946,145.21,145.15,11.19]
[1720941436388,6.4691,145.22,145.17,11.19]
[1720941436389,19.38091316,145.22,145.17,11.19]
[1720941436593,8.19091316,145.22,145.17,11.19]
[1720941436792,19.38091316,145.22,145.17,11.19]
[1720941437179,8.19091316,145.22,145.17,11.19]
[1720941437500,11.19,145.2,145.13,45.0]
[1720941437684,11.19,145.2,145.15,11.19]
[1720941438007,11.19,145.2,145.16,45.0]
[1720941440497,1.72195347,145.21,145.16,56.19]
[1720941440802,12.91195347,145.21,145.16,56.19]
[1720941441011,1.72195347,145.21,145.17,11.19]
[1720941441303,12.91195347,145.21,145.16,56.19]
[1720941444303,19.38096254,145.22,145.17,11.19]
[1720941445101,11.19,145.21,145.16,56.19]
[1720941446113,8.19096254,145.22,145.16,56.19]
[1720941446114,6.4691,145.22,145.16,45.0]
[1720941446401,16.5901,145.23,145.2,11.19]
[1720941447291,1.72147562,145.25,145.2,11.19]
[1720941447500,12.91147562,145.25,145.2,11.19]
[1720941447803,12.91147562,145.25,145.21,11.19]
[1720941448012,1.72147562,145.25,145.21,11.19]
[1720941448512,8.3112942,145.26,145.22,11.19]
[1720941448699,8.3112942,145.26,145.23,11.19]
[1720941448700,6.59,145.26,145.23,11.19]
[1720941449506,6.59,145.26,145.24,11.19]
[1720941450506,16.5356,145.27,145.24,11.19]
[1720941450922,1.72104569,145.29,145.25,11.19]
[1720941451206,1.72104569,145.29,145.19,16.6493]
[1720941451397,6.59,145.3,145.26,11.19]
[1720941451582,8.31072528,145.3,145.26,11.19]
[1720941452001,19.50072528,145.3,145.25,11.19]
[1720941452894,8.31072528,145.3,145.26,11.19]
[1720941453091,6.59,145.3,145.26,11.19]
[1720941454679,8.31072683,145.3,145.26,11.19]
[1720941454984,19.50072683,145.3,145.25,11.19]
[1720941455419,8.31072683,145.3,145.26,11.19]
[1720941455716,6.59,145.3,145.26,11.19]
[1720941457426,8.31072705,145.3,145.26,11.19]
[1720941457609,12.91085961,145.29,145.19,19.49357793]
[1720941457800,8.31092111,145.3,145.25,11.19]
[1720941458122,19.50092111,145.3,145.25,11.19]
[1720941458422,17.78,145.3,145.25,11.19]
[1720941458923,6.59,145.3,145.26,11.19]
[1720941462029,6.59,145.3,145.27,11.19]
[1720941462521,6.59,145.3,145.26,11.19]
[1720941464932,6.59,145.3,145.2,45.0]
[1720941464933,19.50058286,145.3,145.25,11.19]
[1720941465103,19.50058286,145.3,145.26,45.0]
[1720941465630,19.50058286,145.3,145.25,11.19]
[1720941466043,1.72074548,145.29,145.19,19.49357793]
[1720941466332,11.19,145.28,145.23,11.19]
[1720941466517,11.19,145.28,145.24,20.0]
[1720941466698,11.19,145.28,145.23,11.19]
[1720941466900,12.91101161,145.27,145.19,16.6493]
[1720941467109,12.91101161,145.27,145.22,11.19]
[1720941467401,12.91101161,145.27,145.23,20.0]
[1720941468121,11.19,145.27,145.23,20.0]
[1720941469039,11.19,145.28,145.23,31.19]
[1720941470140,1.72101548,145.27,145.23,31.19]
[1720941470526,12.91101548,145.27,145.23,20.0]
[1720941472143,1.72103656,145.29,145.23,20.0]
[1720941472307,11.19,145.27,145.23,20.0]
[1720941473705,1.72103656,145.29,145.23,31.19]
[1720941473912,11.19,145.28,145.23,31.19]
[1720941474143,12.91103656,145.29,145.23,31.19]
[1720941474440,11.19,145.28,145.23,31.19]
[1720941475621,15.7957,145.26,145.16,23.2025]
[1720941475836,19.52831335,145.25,145.16,16.5372]
[1720941476154,11.19,145.24,145.19,11.19]
[1720941477516,19.52831335,145.25,145.2,11.19]
[1720941477834,19.52831335,145.25,145.16,16.5372]
[1720941478044,8.33831335,145.25,145.21,11.19]
[1720941478245,6.617,145.25,145.22,11.19]
[1720941478545,6.617,145.25,145.18,44.76]
[1720941478546,15.7957,145.26,145.23,56.19]
[1720941480315,15.7957,145.26,145.22,11.19]
[1720941480739,17.51681094,145.26,145.18,44.76]
[1720941481044,28.70681094,145.26,145.21,11.19]
[1720941481920,6.2053,145.24,145.19,11.19]
[1720941482131,12.91147415,145.23,145.15,7.19259178]
[1720941482336,12.91147415,145.23,145.18,11.19]
[1720941483241,1.72147415,145.23,145.19,11.19]
[1720941485521,1.72147415,145.23,145.2,11.19]
[1720941485717,6.2053,145.24,145.2,11.19]
[1720941486029,6.2053,145.24,145.21,11.19]
[1720941488021,6.2053,145.24,145.2,11.19]
[1720941488423,17.3953,145.24,145.19,11.19]
[1720941489850,6.2053,145.24,145.19,11.19]
[1720941490016,6.2053,145.24,145.2,11.19]
[1720941491717,6.2053,145.24,145.21,11.19]
[1720941493357,15.7957,145.26,145.21,11.19]
[1720941493824,15.7957,145.26,145.23,11.19]
[1720941495259,1.72116908,145.25,145.22,45.0]
[1720941495423,1.72116908,145.25,145.19,11.19]
[1720941495424,11.19,145.24,145.19,11.19]
[1720941495622,11.19,145.24,145.2,20.0]
[1720941495823,12.91116908,145.25,145.2,31.19]
[1720941499847,12.91116908,145.25,145.16,11.19]
[1720941499848,11.19,145.21,145.16,11.19]
[1720941500539,1.72173373,145.23,145.17,11.19]
[1720941500540,11.19,145.22,145.17,11.19]
[1720941502258,7.92693096,145.24,145.19,11.19]
[1720941502555,19.11693096,145.24,145.19,11.19]
[1720941502755,1.72155439,145.23,145.19,11.19]
[1720941502961,12.91155439,145.23,145.18,11.19]
[1720941503342,11.19,145.22,145.17,11.19]
[1720941505663,1.72173986,145.21,145.17,11.19]
[1720941505837,11.19,145.22,145.17,11.19]
[1720941509257,1.72173986,145.23,145.17,11.19]
[1720941509453,12.91173986,145.23,145.18,56.19]
[1720941510153,1.72173986,145.23,145.19,11.19]
[1720941511238,6.2053,145.24,145.18,45.0]
[1720941511562,26.9857,145.26,145.21,11.19]
[1720941512064,1.72132552,145.25,145.21,11.19]
[1720941512662,12.91132552,145.25,145.2,11.19]
[1720941512978,12.91132552,145.25,145.21,20.0]
[1720941514261,15.7957,145.26,145.21,20.0]
[1720941514262,15.7957,145.26,145.22,11.19]
[1720941516647,6.4482,145.28,145.21,20.0]
[1720941516849,6.4482,145.28,145.24,11.19]
[1720941517045,6.4482,145.28,145.25,11.19]
[1720941518456,6.4482,145.28,145.19,20.0]
[1720941518457,1.72083884,145.29,145.26,11.19]
[1720941519170,1.72083884,145.29,145.25,11.19]
[1720941520038,12.91083884,145.29,145.24,11.19]
[1720941522271,8.60363884,145.29,145.19,26.5863]
[1720941522447,11.19,145.28,145.2,45.0]
[1720941522648,1.72083884,145.29,145.23,11.19]
[1720941522970,11.19,145.28,145.24,20.0]
[1720941523161,19.55098363,145.27,145.22,11.19]
[1720941523360,17.8298,145.27,145.23,20.0]
[1720941524057,6.6398,145.27,145.23,31.19]
[1720941524265,6.6398,145.27,145.24,11.19]
[1720941525161,6.6398,145.27,145.23,31.19]
[1720941525559,6.6398,145.27,145.24,11.19]
[1720941525965,6.6398,145.27,145.23,31.19]
[1720941526367,6.6398,145.27,145.24,11.19]